[Event "Late-Titled-Tuesday-Blitz-April-23-2024"]
[Site "Chess.com"]
[Date "2024.04.23"]
[Round "7"]
[White "Russian_berezka"]
[Black "gmcorrales"]
[Result "0-1"]
[WhiteElo "2640"]
[BlackElo "2861"]
[TimeControl "180+1"]
[EndTime "15:19:11 PDT"]
[Termination "gmcorrales won by resignation"]

1. d4 {[%clk 0:03:00.9]} 1... Nf6 {[%clk 0:02:59.4]} 2. c4 {[%clk 0:03:00.7]}
2... e6 {[%clk 0:02:58.6]} 3. Nf3 {[%clk 0:03:01.4]} 3... d5 {[%clk 0:02:59.2]}
4. Nc3 {[%clk 0:03:01.6]} 4... Bb4 {[%clk 0:02:58.5]} 5. Bg5 {[%clk 0:02:59]}
5... Nbd7 {[%clk 0:02:55.2]} 6. cxd5 {[%clk 0:02:43.4]} 6... exd5 {[%clk
0:02:56.1]} 7. Nd2 {[%clk 0:02:43.3]} 7... c6 {[%clk 0:02:54.8]} 8. e3 {[%clk
0:02:43.3]} 8... h6 {[%clk 0:02:53.8]} 9. Bh4 {[%clk 0:02:42.3]} 9... Nb6 {[%clk
0:02:46.6]} 10. Bd3 {[%clk 0:02:36.3]} 10... Qe7 {[%clk 0:02:40.5]} 11. O-O
{[%clk 0:02:25.8]} 11... g5 {[%clk 0:02:40.3]} 12. Bg3 {[%clk 0:02:24.8]} 12...
h5 {[%clk 0:02:40.6]} 13. e4 {[%clk 0:02:15.3]} 13... Bxc3 {[%clk 0:02:28]} 14.
bxc3 {[%clk 0:02:16.2]} 14... dxe4 {[%clk 0:02:26]} 15. Nxe4 {[%clk 0:02:09.9]}
15... Nxe4 {[%clk 0:02:24.1]} 16. Bxe4 {[%clk 0:02:10.4]} 16... h4 {[%clk
0:02:16]} 17. Be5 {[%clk 0:02:04.5]} 17... f6 {[%clk 0:02:13.8]} 18. Bg6+ {[%clk
0:01:55.3]} 18... Kd8 {[%clk 0:02:13.2]} 19. f4 {[%clk 0:01:35.7]} 19... fxe5
{[%clk 0:02:04.8]} 20. fxe5 {[%clk 0:01:36.6]} 20... Be6 {[%clk 0:02:05.1]} 21.
a4 {[%clk 0:01:31.4]} 21... Kc7 {[%clk 0:02:00.2]} 22. a5 {[%clk 0:01:31.5]}
22... Nc4 {[%clk 0:02:00.5]} 23. Qd3 {[%clk 0:01:26.5]} 23... Raf8 {[%clk
0:01:57.7]} 24. a6 {[%clk 0:01:25.3]} 24... Rxf1+ {[%clk 0:01:56.6]} 25. Rxf1
{[%clk 0:01:25.9]} 25... Rf8 {[%clk 0:01:50.3]} 26. Rb1 {[%clk 0:01:00.7]} 26...
b5 {[%clk 0:01:49.4]} 27. Be4 {[%clk 0:00:59.3]} 27... Qa3 {[%clk 0:01:42.5]}
28. Bf3 {[%clk 0:00:54.9]} 28... Bf5 {[%clk 0:01:41.2]} 29. Be4 {[%clk
0:00:51.4]} 29... Bxe4 {[%clk 0:01:07.6]} 30. Qxe4 {[%clk 0:00:52.3]} 30... Qe7
{[%clk 0:00:58]} 31. Rxb5 {[%clk 0:00:37.8]} 31... Rf1+ {[%clk 0:00:46.9]} 32.
Kxf1 {[%clk 0:00:35.9]} 32... Nd2+ {[%clk 0:00:46.9]} 33. Ke2 {[%clk 0:00:36]}
33... Nxe4 {[%clk 0:00:47.8]} 34. Rb7+ {[%clk 0:00:36]} 34... Kd8 {[%clk
0:00:48.4]} 35. Rb8+ {[%clk 0:00:29]} 35... Kd7 {[%clk 0:00:48.5]} 36. Rb7+
{[%clk 0:00:29.9]} 36... Ke6 {[%clk 0:00:48.5]} 37. Rxe7+ {[%clk 0:00:30.8]}
37... Kxe7 {[%clk 0:00:49.4]} 38. Kd3 {[%clk 0:00:26.6]} 38... Nf2+ {[%clk
0:00:49.4]} 39. Kc4 {[%clk 0:00:26.1]} 39... Ng4 {[%clk 0:00:49.4]} 40. Kc5
{[%clk 0:00:24.3]} 40... Kd7 {[%clk 0:00:47.5]} 41. e6+ {[%clk 0:00:17.8]} 41...
Kc7 {[%clk 0:00:48]} 42. e7 {[%clk 0:00:17.3]} 42... Nf6 {[%clk 0:00:47.9]} 43.
c4 {[%clk 0:00:17.5]} 43... Ne4+ {[%clk 0:00:43.8]} 44. Kb4 {[%clk 0:00:17.2]}
44... Kd7 {[%clk 0:00:44.7]} 45. d5 {[%clk 0:00:16.9]} 45... Kxe7 {[%clk
0:00:44.6]} 46. dxc6 {[%clk 0:00:15.8]} 46... Kd6 {[%clk 0:00:45.1]} 47. Kb5
{[%clk 0:00:16]} 47... Kc7 {[%clk 0:00:44.1]} 48. c5 {[%clk 0:00:15.4]} 48...
Nd2 {[%clk 0:00:43.5]} 49. Kb4 {[%clk 0:00:15]} 49... Kxc6 {[%clk 0:00:43.2]}
50. Kc3 {[%clk 0:00:15.9]} 50... Nf1 {[%clk 0:00:42.2]} 51. Kd4 {[%clk
0:00:14.8]} 51... Nxh2 {[%clk 0:00:42.3]} 52. Ke5 {[%clk 0:00:15.4]} 52... g4
{[%clk 0:00:34]} 53. Kf4 {[%clk 0:00:15.5]} 53... Kxc5 {[%clk 0:00:33.2]} 54.
Kg5 {[%clk 0:00:15.9]} 54... h3 {[%clk 0:00:33.1]} 55. gxh3 {[%clk 0:00:15.2]}
55... g3 {[%clk 0:00:33.7]} 0-1

[Event "Late-Titled-Tuesday-Blitz-April-23-2024"]
[Site "Chess.com"]
[Date "2024.04.23"]
[Round "7"]
[White "bascheyaro"]
[Black "Njal28"]
[Result "1-0"]
[WhiteElo "2826"]
[BlackElo "3014"]
[TimeControl "180+1"]
[EndTime "15:19:19 PDT"]
[Termination "bascheyaro won on time"]

1. d4 {[%clk 0:03:00.9]} 1... Nf6 {[%clk 0:02:59.4]} 2. Nf3 {[%clk 0:03:01.2]}
2... b6 {[%clk 0:02:58.1]} 3. c4 {[%clk 0:03:01.3]} 3... Bb7 {[%clk 0:02:58.2]}
4. Nc3 {[%clk 0:03:01.3]} 4... e6 {[%clk 0:02:57.5]} 5. g3 {[%clk 0:02:59.3]}
5... Bb4 {[%clk 0:02:56.8]} 6. Bg2 {[%clk 0:02:56.8]} 6... Bxc3+ {[%clk
0:02:56]} 7. bxc3 {[%clk 0:02:57.7]} 7... d6 {[%clk 0:02:55]} 8. O-O {[%clk
0:02:57.5]} 8... Nbd7 {[%clk 0:02:53.6]} 9. a4 {[%clk 0:02:53.3]} 9... a5 {[%clk
0:02:50.3]} 10. Ba3 {[%clk 0:02:52.9]} 10... O-O {[%clk 0:02:48.8]} 11. Qb3
{[%clk 0:02:52]} 11... Be4 {[%clk 0:02:47.4]} 12. Rfd1 {[%clk 0:02:48.8]} 12...
Re8 {[%clk 0:02:44.3]} 13. e3 {[%clk 0:02:46.1]} 13... Qc8 {[%clk 0:02:42.8]}
14. Ne1 {[%clk 0:02:34.9]} 14... Bxg2 {[%clk 0:02:43.3]} 15. Kxg2 {[%clk
0:02:35.5]} 15... e5 {[%clk 0:02:38.7]} 16. c5 {[%clk 0:02:23.9]} 16... dxc5
{[%clk 0:02:29.8]} 17. dxc5 {[%clk 0:02:23.9]} 17... bxc5 {[%clk 0:02:16]} 18.
Qc4 {[%clk 0:02:23.1]} 18... Qb7+ {[%clk 0:02:07.1]} 19. Nf3 {[%clk 0:02:12]}
19... Qc6 {[%clk 0:01:53.4]} 20. Qb5 {[%clk 0:02:04.4]} 20... Qxb5 {[%clk
0:01:47.3]} 21. axb5 {[%clk 0:02:05.3]} 21... e4 {[%clk 0:01:47.6]} 22. Nd2
{[%clk 0:02:02.2]} 22... a4 {[%clk 0:01:45.7]} 23. Nc4 {[%clk 0:01:59.9]} 23...
Nb6 {[%clk 0:01:38.6]} 24. Nxb6 {[%clk 0:01:52.1]} 24... cxb6 {[%clk 0:01:39.5]}
25. Rd6 {[%clk 0:01:52.3]} 25... Re6 {[%clk 0:01:34.8]} 26. Rad1 {[%clk
0:01:50.5]} 26... h5 {[%clk 0:01:30]} 27. Rxe6 {[%clk 0:01:48.7]} 27... fxe6
{[%clk 0:01:29.5]} 28. Rd6 {[%clk 0:01:48.7]} 28... Rb8 {[%clk 0:00:49.4]} 29.
c4 {[%clk 0:01:38]} 29... Kf7 {[%clk 0:00:50]} 30. Rc6 {[%clk 0:01:35.3]} 30...
Ne8 {[%clk 0:00:42.7]} 31. f3 {[%clk 0:01:29.6]} 31... exf3+ {[%clk 0:00:25.7]}
32. Kxf3 {[%clk 0:01:30.5]} 32... Ke7 {[%clk 0:00:26.5]} 33. Ke4 {[%clk
0:01:11.8]} 33... Nd6+ {[%clk 0:00:22.1]} 34. Kd3 {[%clk 0:01:11.9]} 34... Kd7
{[%clk 0:00:20.9]} 35. Bb2 {[%clk 0:01:11.1]} 35... Rb7 {[%clk 0:00:16.2]} 36.
Be5 {[%clk 0:01:08.1]} 36... Ne8 {[%clk 0:00:12.9]} 37. Bb2 {[%clk 0:01:06.7]}
37... g5 {[%clk 0:00:05.5]} 38. h3 {[%clk 0:01:05.5]} 38... Nd6 {[%clk
0:00:05.5]} 39. g4 {[%clk 0:01:03.4]} 39... hxg4 {[%clk 0:00:05.6]} 40. hxg4
{[%clk 0:01:04]} 40... Nf7 {[%clk 0:00:06.5]} 41. Bf6 {[%clk 0:01:00.1]} 41...
Nh6 {[%clk 0:00:04.6]} 42. Bxg5 {[%clk 0:00:53.5]} 42... Nxg4 {[%clk 0:00:04.9]}
43. Bf4 {[%clk 0:00:54]} 43... a3 {[%clk 0:00:04.6]} 44. Kc2 {[%clk 0:00:53.2]}
44... Nf6 {[%clk 0:00:02.8]} 45. Kb3 {[%clk 0:00:49.1]} 45... Ra7 {[%clk
0:00:02.1]} 46. Ka2 {[%clk 0:00:37.8]} 46... Ne4 {[%clk 0:00:01.9]} 47. Rxb6
{[%clk 0:00:38.3]} 47... Nc3+ {[%clk 0:00:02.3]} 48. Ka1 {[%clk 0:00:38.7]}
48... Ke7 {[%clk 0:00:02.7]} 49. Ra6 {[%clk 0:00:37.2]} 49... Rd7 {[%clk
0:00:02.5]} 50. Rxa3 {[%clk 0:00:36.8]} 50... Ne4 {[%clk 0:00:02.8]} 51. b6
{[%clk 0:00:36.3]} 51... Rb7 {[%clk 0:00:03.1]} 52. Ra7 {[%clk 0:00:34.5]} 1-0

[Event "Late-Titled-Tuesday-Blitz-April-23-2024"]
[Site "Chess.com"]
[Date "2024.04.23"]
[Round "7"]
[White "manmanlai1"]
[Black "KNVB"]
[Result "0-1"]
[WhiteElo "2518"]
[BlackElo "2693"]
[TimeControl "180+1"]
[EndTime "15:19:22 PDT"]
[Termination "KNVB won on time"]

1. e4 {[%clk 0:02:53.4]} 1... b6 {[%clk 0:02:58.3]} 2. d4 {[%clk 0:02:52.9]}
2... Bb7 {[%clk 0:02:36.5]} 3. f3 {[%clk 0:02:45.8]} 3... e6 {[%clk 0:02:35.4]}
4. Be3 {[%clk 0:02:43.6]} 4... d5 {[%clk 0:02:23.8]} 5. e5 {[%clk 0:02:42.4]}
5... Ba6 {[%clk 0:02:09]} 6. Bxa6 {[%clk 0:02:40.2]} 6... Nxa6 {[%clk
0:02:09.9]} 7. c3 {[%clk 0:02:40.5]} 7... Qd7 {[%clk 0:02:10]} 8. f4 {[%clk
0:02:30.1]} 8... Ne7 {[%clk 0:01:58.4]} 9. Qe2 {[%clk 0:02:28.4]} 9... Nb8
{[%clk 0:01:45.3]} 10. Nf3 {[%clk 0:02:28.8]} 10... h5 {[%clk 0:01:33.2]} 11. g3
{[%clk 0:02:26.7]} 11... Nf5 {[%clk 0:01:32.4]} 12. Bf2 {[%clk 0:02:25.2]} 12...
c5 {[%clk 0:01:32.9]} 13. Kf1 {[%clk 0:02:21.1]} 13... Nc6 {[%clk 0:01:32.9]}
14. Kg2 {[%clk 0:02:19.6]} 14... Be7 {[%clk 0:01:33.3]} 15. h3 {[%clk
0:02:19.1]} 15... O-O-O {[%clk 0:01:33.1]} 16. g4 {[%clk 0:02:16.6]} 16... Nh6
{[%clk 0:01:33.4]} 17. g5 {[%clk 0:02:13.4]} 17... Nf5 {[%clk 0:01:33.6]} 18. a4
{[%clk 0:02:08.9]} 18... c4 {[%clk 0:01:33.7]} 19. Nbd2 {[%clk 0:02:07.7]} 19...
Na5 {[%clk 0:01:34.4]} 20. Rhb1 {[%clk 0:02:04.5]} 20... Kb7 {[%clk 0:01:34.3]}
21. b3 {[%clk 0:02:02.6]} 21... cxb3 {[%clk 0:01:35.2]} 22. Nxb3 {[%clk
0:02:02.5]} 22... Nxb3 {[%clk 0:01:31.1]} 23. Rxb3 {[%clk 0:02:01.7]} 23... Ka8
{[%clk 0:01:32]} 24. a5 {[%clk 0:02:00.7]} 24... bxa5 {[%clk 0:01:32.9]} 25.
Rxa5 {[%clk 0:01:47.7]} 25... Rb8 {[%clk 0:01:33.3]} 26. Rb2 {[%clk 0:01:25.9]}
26... Rxb2 {[%clk 0:01:32]} 27. Qxb2 {[%clk 0:01:26.4]} 27... Rb8 {[%clk
0:01:32.9]} 28. Qa2 {[%clk 0:01:26.4]} 28... Rb7 {[%clk 0:01:28.4]} 29. c4
{[%clk 0:01:23.8]} 29... dxc4 {[%clk 0:01:28.7]} 30. Qxc4 {[%clk 0:01:23.2]}
30... Rc7 {[%clk 0:01:29.3]} 31. Qd3 {[%clk 0:01:14.2]} 31... Bb4 {[%clk
0:01:21.8]} 32. Rb5 {[%clk 0:01:11.2]} 32... Rb7 {[%clk 0:01:08.2]} 33. Rxb7
{[%clk 0:01:04.1]} 33... Kxb7 {[%clk 0:01:02.9]} 34. Kg1 {[%clk 0:00:36.6]}
34... Qd5 {[%clk 0:01:00]} 35. g6 {[%clk 0:00:21.2]} 35... fxg6 {[%clk 0:01:00]}
36. Nh4 {[%clk 0:00:21.5]} 36... Bc5 {[%clk 0:00:08.3]} 37. Qb1+ {[%clk
0:00:18.1]} 37... Bb6 {[%clk 0:00:08.8]} 38. Nxg6 {[%clk 0:00:14.4]} 38... Nxd4
{[%clk 0:00:09]} 39. Ne7 {[%clk 0:00:02.4]} 39... Ne2+ {[%clk 0:00:04.8]} 40.
Kf1 {[%clk 0:00:02.3]} 40... Qh1+ {[%clk 0:00:04.5]} 0-1

[Event "Late-Titled-Tuesday-Blitz-April-23-2024"]
[Site "Chess.com"]
[Date "2024.04.23"]
[Round "7"]
[White "Fandorine"]
[Black "nihalsarin"]
[Result "0-1"]
[WhiteElo "2936"]
[BlackElo "3138"]
[TimeControl "180+1"]
[EndTime "15:19:23 PDT"]
[Termination "nihalsarin won on time"]

1. e4 {[%clk 0:03:00.9]} 1... c5 {[%clk 0:02:57]} 2. Ne2 {[%clk 0:02:59]} 2...
Nf6 {[%clk 0:02:39.1]} 3. Nbc3 {[%clk 0:02:57.7]} 3... Qa5 {[%clk 0:02:39.8]} 4.
g3 {[%clk 0:02:51.9]} 4... h5 {[%clk 0:02:36.8]} 5. h3 {[%clk 0:02:50.8]} 5...
Nc6 {[%clk 0:02:34]} 6. Bg2 {[%clk 0:02:46.4]} 6... g6 {[%clk 0:02:33.9]} 7. O-O
{[%clk 0:02:37.4]} 7... Bg7 {[%clk 0:02:25.4]} 8. d4 {[%clk 0:02:22.3]} 8...
cxd4 {[%clk 0:02:25]} 9. Nxd4 {[%clk 0:02:23.2]} 9... O-O {[%clk 0:02:23.8]} 10.
Nb3 {[%clk 0:02:21]} 10... Qd8 {[%clk 0:02:22.8]} 11. Bg5 {[%clk 0:02:19]} 11...
d6 {[%clk 0:02:22.9]} 12. Re1 {[%clk 0:02:19]} 12... Be6 {[%clk 0:02:22.3]} 13.
Nd5 {[%clk 0:02:18.5]} 13... Nh7 {[%clk 0:02:14.8]} 14. Bc1 {[%clk 0:02:13]}
14... Rc8 {[%clk 0:02:14.7]} 15. c3 {[%clk 0:02:12.7]} 15... Re8 {[%clk
0:02:08.6]} 16. Be3 {[%clk 0:02:07.4]} 16... Nf6 {[%clk 0:02:04]} 17. Nd4 {[%clk
0:01:49.9]} 17... Bd7 {[%clk 0:02:00.5]} 18. Nb3 {[%clk 0:01:38.1]} 18... Ne5
{[%clk 0:01:56.6]} 19. Bg5 {[%clk 0:01:19.9]} 19... Nc4 {[%clk 0:01:51]} 20. Re2
{[%clk 0:01:14.2]} 20... Nh7 {[%clk 0:01:15.6]} 21. Bc1 {[%clk 0:01:08.1]} 21...
b5 {[%clk 0:01:09]} 22. a3 {[%clk 0:01:02.2]} 22... a5 {[%clk 0:01:08]} 23. Nd4
{[%clk 0:01:00]} 23... Nf6 {[%clk 0:01:00.9]} 24. Bg5 {[%clk 0:00:56]} 24... e6
{[%clk 0:00:57.4]} 25. Nxf6+ {[%clk 0:00:52.7]} 25... Bxf6 {[%clk 0:00:58.3]}
26. Bc1 {[%clk 0:00:41.4]} 26... Qb6 {[%clk 0:00:51.6]} 27. Kh1 {[%clk
0:00:37.9]} 27... b4 {[%clk 0:00:51.2]} 28. axb4 {[%clk 0:00:36.9]} 28... axb4
{[%clk 0:00:52.1]} 29. h4 {[%clk 0:00:21.9]} 29... Kg7 {[%clk 0:00:41.5]} 30.
Kg1 {[%clk 0:00:13.9]} 30... Rc7 {[%clk 0:00:27]} 31. b3 {[%clk 0:00:08.2]}
31... bxc3 {[%clk 0:00:25.5]} 32. bxc4 {[%clk 0:00:05.3]} 32... Qxd4 {[%clk
0:00:25.1]} 33. Qe1 {[%clk 0:00:04.6]} 33... Qxc4 {[%clk 0:00:16]} 34. Be3
{[%clk 0:00:03.9]} 34... Rb8 {[%clk 0:00:14.4]} 35. Rc1 {[%clk 0:00:02.9]} 35...
Rcb7 {[%clk 0:00:14.6]} 36. e5 {[%clk 0:00:03]} 36... Bxe5 {[%clk 0:00:14.4]}
37. Bxb7 {[%clk 0:00:03.2]} 37... Rxb7 {[%clk 0:00:15.1]} 38. Bg5 {[%clk
0:00:02.4]} 38... Bd4 {[%clk 0:00:13.3]} 39. Be3 {[%clk 0:00:01.6]} 39... e5
{[%clk 0:00:11.2]} 40. Bg5 {[%clk 0:00:01.3]} 40... Bc6 {[%clk 0:00:09.8]} 0-1

[Event "Late-Titled-Tuesday-Blitz-April-23-2024"]
[Site "Chess.com"]
[Date "2024.04.23"]
[Round "7"]
[White "nindjaxx8"]
[Black "dosto07"]
[Result "1-0"]
[WhiteElo "2648"]
[BlackElo "2494"]
[TimeControl "180+1"]
[EndTime "15:19:26 PDT"]
[Termination "nindjaxx8 won on time"]

1. d4 {[%clk 0:02:56.8]} 1... d5 {[%clk 0:02:59.1]} 2. c4 {[%clk 0:02:55.4]}
2... dxc4 {[%clk 0:03:00]} 3. e3 {[%clk 0:02:51.2]} 3... Nf6 {[%clk 0:02:59.7]}
4. Bxc4 {[%clk 0:02:49.6]} 4... e6 {[%clk 0:03:00.6]} 5. Nf3 {[%clk 0:02:49.4]}
5... c5 {[%clk 0:03:01.3]} 6. O-O {[%clk 0:02:49.8]} 6... a6 {[%clk 0:03:01.6]}
7. a4 {[%clk 0:02:49.4]} 7... Nc6 {[%clk 0:03:01.2]} 8. Nc3 {[%clk 0:02:49]}
8... Be7 {[%clk 0:03:01.4]} 9. b3 {[%clk 0:02:47.1]} 9... O-O {[%clk 0:03:00.3]}
10. Bb2 {[%clk 0:02:47.2]} 10... b6 {[%clk 0:02:56]} 11. d5 {[%clk 0:02:44.8]}
11... exd5 {[%clk 0:02:55.6]} 12. Nxd5 {[%clk 0:02:45.7]} 12... Nxd5 {[%clk
0:02:49.3]} 13. Bxd5 {[%clk 0:02:46.6]} 13... Bb7 {[%clk 0:02:47.2]} 14. e4
{[%clk 0:02:39.5]} 14... Qc7 {[%clk 0:02:43.5]} 15. Nd2 {[%clk 0:01:53.1]} 15...
Bd6 {[%clk 0:02:31.6]} 16. Nc4 {[%clk 0:01:39.8]} 16... Bxh2+ {[%clk 0:02:29.7]}
17. Kh1 {[%clk 0:01:39.3]} 17... Bf4 {[%clk 0:02:06.6]} 18. Qg4 {[%clk
0:01:33.9]} 18... Bh6 {[%clk 0:02:01.5]} 19. Rad1 {[%clk 0:01:19.2]} 19... Rad8
{[%clk 0:01:38.2]} 20. Ne3 {[%clk 0:01:04.8]} 20... Bc8 {[%clk 0:01:28.5]} 21.
Nf5 {[%clk 0:00:47]} 21... Bxf5 {[%clk 0:01:26.9]} 22. exf5 {[%clk 0:00:47.9]}
22... Nb4 {[%clk 0:01:19.2]} 23. Bc4 {[%clk 0:00:38.2]} 23... Qf4 {[%clk
0:01:16.5]} 24. Qxf4 {[%clk 0:00:29.5]} 24... Bxf4 {[%clk 0:01:16.5]} 25. f6
{[%clk 0:00:26.8]} 25... gxf6 {[%clk 0:00:53.7]} 26. Bxf6 {[%clk 0:00:23.4]}
26... Rd6 {[%clk 0:00:52.8]} 27. Rxd6 {[%clk 0:00:21.7]} 27... Bxd6 {[%clk
0:00:52.3]} 28. Rd1 {[%clk 0:00:21.9]} 28... Bf4 {[%clk 0:00:44.2]} 29. g3
{[%clk 0:00:20.6]} 29... Bh6 {[%clk 0:00:43.8]} 30. Rd7 {[%clk 0:00:17.9]} 30...
Bg7 {[%clk 0:00:44.1]} 31. Be7 {[%clk 0:00:17.9]} 31... Re8 {[%clk 0:00:40]} 32.
Bd6 {[%clk 0:00:17.2]} 32... Re1+ {[%clk 0:00:30.1]} 33. Kg2 {[%clk 0:00:17.1]}
33... Be5 {[%clk 0:00:23.5]} 34. Rxf7 {[%clk 0:00:11.9]} 34... Bxd6 {[%clk
0:00:17.8]} 35. Re7+ {[%clk 0:00:12.2]} 35... Kf8 {[%clk 0:00:16.8]} 36. Rxe1
{[%clk 0:00:12.2]} 36... a5 {[%clk 0:00:15]} 37. Re6 {[%clk 0:00:12]} 37... Bc7
{[%clk 0:00:12.9]} 38. f4 {[%clk 0:00:10.5]} 38... Nc2 {[%clk 0:00:12.8]} 39.
Kf3 {[%clk 0:00:07.6]} 39... Nd4+ {[%clk 0:00:12.7]} 40. Ke4 {[%clk 0:00:08.2]}
40... Bd8 {[%clk 0:00:10.5]} 41. Rd6 {[%clk 0:00:06]} 41... Ke7 {[%clk
0:00:09.6]} 42. Rh6 {[%clk 0:00:05.6]} 42... Ne2 {[%clk 0:00:07.5]} 43. Rxh7+
{[%clk 0:00:05.6]} 43... Kd6 {[%clk 0:00:08]} 44. Bxe2 {[%clk 0:00:06.5]} 1-0

[Event "Late-Titled-Tuesday-Blitz-April-23-2024"]
[Site "Chess.com"]
[Date "2024.04.23"]
[Round "7"]
[White "Evan_Attaker"]
[Black "SpeedofLight0"]
[Result "0-1"]
[WhiteElo "2613"]
[BlackElo "3048"]
[TimeControl "180+1"]
[EndTime "15:19:32 PDT"]
[Termination "SpeedofLight0 won by resignation"]

1. Nf3 {[%clk 0:02:59.7]} 1... d6 {[%clk 0:03:00]} 2. d4 {[%clk 0:02:58]} 2...
g6 {[%clk 0:02:59.9]} 3. b3 {[%clk 0:02:56.8]} 3... Bg7 {[%clk 0:02:59.8]} 4.
Bb2 {[%clk 0:02:57.4]} 4... Nc6 {[%clk 0:03:00.5]} 5. c4 {[%clk 0:02:56]} 5...
Bg4 {[%clk 0:02:57.8]} 6. e3 {[%clk 0:02:55.2]} 6... e5 {[%clk 0:02:57.6]} 7.
Be2 {[%clk 0:02:55.6]} 7... Nf6 {[%clk 0:02:52.3]} 8. h3 {[%clk 0:02:50.1]} 8...
Bxf3 {[%clk 0:02:44.1]} 9. Bxf3 {[%clk 0:02:51]} 9... exd4 {[%clk 0:02:44.4]}
10. exd4 {[%clk 0:02:50.2]} 10... Qe7+ {[%clk 0:02:42.8]} 11. Qe2 {[%clk
0:02:48.7]} 11... Nb4 {[%clk 0:02:42.4]} 12. Qxe7+ {[%clk 0:02:43.7]} 12... Kxe7
{[%clk 0:02:43.3]} 13. Kd2 {[%clk 0:02:43.6]} 13... Bh6+ {[%clk 0:02:41.6]} 14.
Kc3 {[%clk 0:02:43.4]} 14... Nc6 {[%clk 0:02:26]} 15. Re1+ {[%clk 0:02:19.9]}
15... Kd7 {[%clk 0:02:25.7]} 16. Bxc6+ {[%clk 0:01:58.2]} 16... bxc6 {[%clk
0:02:24.3]} 17. Nd2 {[%clk 0:01:56.1]} 17... Rhe8 {[%clk 0:02:22.2]} 18. f3
{[%clk 0:01:50.5]} 18... Nh5 {[%clk 0:02:21.7]} 19. Ne4 {[%clk 0:01:47.3]} 19...
f5 {[%clk 0:02:21.3]} 20. Nf2 {[%clk 0:01:47.1]} 20... Bg5 {[%clk 0:02:17.4]}
21. Nd3 {[%clk 0:01:42.2]} 21... Bh4 {[%clk 0:02:17.3]} 22. Rxe8 {[%clk
0:01:39.4]} 22... Rxe8 {[%clk 0:02:18.2]} 23. Rd1 {[%clk 0:01:36.6]} 23... Re2
{[%clk 0:02:10.2]} 24. Rd2 {[%clk 0:01:35.6]} 24... Re3 {[%clk 0:02:10.7]} 25.
Kc2 {[%clk 0:01:31.1]} 25... Ng3 {[%clk 0:02:02.8]} 26. Bc1 {[%clk 0:01:23.6]}
26... Nf1 {[%clk 0:01:58.9]} 27. Rd1 {[%clk 0:01:15.5]} 27... Re2+ {[%clk
0:01:58.3]} 28. Kb1 {[%clk 0:01:04.6]} 28... Ng3 {[%clk 0:01:47.2]} 29. Rd2
{[%clk 0:00:56.1]} 29... Re8 {[%clk 0:01:40.6]} 30. Kc2 {[%clk 0:00:55.3]} 30...
Bg5 {[%clk 0:01:30.3]} 31. Rf2 {[%clk 0:00:50.8]} 31... Bf6 {[%clk 0:01:27.7]}
32. Bb2 {[%clk 0:00:41.7]} 32... Bh4 {[%clk 0:01:27.4]} 33. Rd2 {[%clk
0:00:39.4]} 33... Nf1 {[%clk 0:01:27.3]} 34. d5 {[%clk 0:00:35.9]} 34... c5
{[%clk 0:01:12.9]} 35. b4 {[%clk 0:00:31.6]} 35... cxb4 {[%clk 0:01:10.2]} 36.
Bd4 {[%clk 0:00:22.1]} 36... Nxd2 {[%clk 0:01:06.8]} 37. Kxd2 {[%clk 0:00:23]}
37... a5 {[%clk 0:01:06.8]} 38. f4 {[%clk 0:00:19.7]} 38... a4 {[%clk
0:01:04.6]} 39. Be3 {[%clk 0:00:17.8]} 39... Rb8 {[%clk 0:00:31.5]} 40. Kc2
{[%clk 0:00:16.9]} 40... b3+ {[%clk 0:00:29.2]} 41. axb3 {[%clk 0:00:17.8]}
41... Rxb3 {[%clk 0:00:29.4]} 42. c5 {[%clk 0:00:18]} 42... Bf6 {[%clk
0:00:26.3]} 43. Bd2 {[%clk 0:00:16.5]} 43... Rb5 {[%clk 0:00:19.7]} 44. cxd6
{[%clk 0:00:14.3]} 44... cxd6 {[%clk 0:00:20.6]} 45. Nb4 {[%clk 0:00:14.7]}
45... Bd4 {[%clk 0:00:19]} 46. Kd3 {[%clk 0:00:14]} 46... Bc5 {[%clk 0:00:16.6]}
47. Nc2 {[%clk 0:00:14.1]} 47... a3 {[%clk 0:00:16]} 48. Bc3 {[%clk 0:00:14.5]}
48... a2 {[%clk 0:00:16.2]} 49. Kc4 {[%clk 0:00:14.5]} 49... Rb1 {[%clk
0:00:16.4]} 50. Na1 {[%clk 0:00:13.2]} 50... Be3 {[%clk 0:00:16]} 51. Nb3 {[%clk
0:00:12.6]} 51... Bxf4 {[%clk 0:00:15.3]} 52. Kd3 {[%clk 0:00:11.5]} 52... Rxb3
{[%clk 0:00:14.4]} 0-1